Cogmind - Beta 15 @@@ ROGUE MODE // 2025.07.21 @ 16:44:31 Player: FenRhew Result: Destroyed by X-72 Disruptor with Arc Projector Performance ------------- Evolutions (3) 1500 Regions Visited (5) 1000 Robots Destroyed (56) 280 Value Destroyed (2322) 2322 Prototype IDs (10) 200 Alien Tech Used (0) 0 Bonus (-67) -67 TOTAL SCORE: 5235 Bonus ------- Friendly Fire -67 Cogmind --------- Core Integrity 0/700 Matter 259/300 Energy 142/155 System Corruption 10% Temperature Cool (28) Movement Walking (195) Ox1 Location -7/Lower Caves Parts ------- > --- POWER (1) -------- Neutrino-Nuclear Core > --- PROPULSION (4) --- Improved Carbon-fiber Leg Improved Titanium Leg Treaded Gravmag-Carbon Exoskeleton > --- UTILITY (6) ------ Armored Scrap Engine Large Storage Unit Advanced Visual Processing Unit Improved Sensor Array Improved Signal Interpreter > --- WEAPON (2) ------- Proton Missile Launcher Thermic Particle Construct/C > --- INVENTORY (15) --- Light Nuclear Core Light Nuclear Core Improved Carbon-fiber Leg Improved Heat Sink Target Analyzer Kinecellerator Weapon Cycler Transmission Jammer Component Analysis Suite Molecular Deconstructor Mace Peak State ------------ > --- POWER ------------ Neutrino-Nuclear Core > --- PROPULSION ------- Improved Carbon-fiber Leg Improved Titanium Leg Treaded Gravmag-Carbon Exoskeleton > --- UTILITY ---------- Armored Scrap Engine Large Storage Unit Advanced Visual Processing Unit Improved Sensor Array Improved Signal Interpreter > --- WEAPON ----------- Thermic Particle Construct/C Mace > --- INVENTORY -------- Light Nuclear Core Light Nuclear Core Improved Carbon-fiber Leg Improved Heat Sink Target Analyzer Kinecellerator Weapon Cycler Transmission Jammer Component Analysis Suite Heavy Particle Cannon Heavy Particle Cannon Proton Missile Launcher Molecular Deconstructor [Rating: 63] Favorites ----------- Power Light Ion Engine Engine Light Ion Engine Power Core Constructs Propulsion Light Treads Treads Light Treads Leg Improved Carbon-fiber Leg Hover Unit Airjet Utility Large Storage Unit Device Armored Scrap Engine Storage Large Storage Unit Processor Improved Signal Interpreter Hackware Hacking Suite Protection Hardened Medium Armor Plating Weapon Improved Light Cannon Energy Gun Medium Laser Energy Cannon Constructs Ballistic Gun Constructs Ballistic Cannon Improved Light Cannon Launcher Grenade Launcher Impact Weapon Mace Build | -11 -10 -10 -9 -7 -7 ------- Run | Yrd Mat Sub Rec Fac Low Slots Evolved 6 | . . . . 6 . Power . | . . . . . . Propulsion 2 | . . . . 2 . Utility 4 | . . . . 4 . Weapon . | . . . . . . Parts Attached 53 | 6 7 5 9 25 1 Power 6 | 1 1 1 2 1 . Engine 5 | 1 1 1 2 . . Core 1 | . . . . 1 . Reactor . | . . . . . . Propulsion 15 | 2 2 . 2 9 . Treads 8 | 2 2 . 2 2 . Leg 6 | . . . . 6 . Wheel . | . . . . . . Hover 1 | . . . . 1 . Flight . | . . . . . . Utility 19 | 1 3 2 2 11 . Device 7 | . 1 1 1 4 . Storage 2 | 1 1 . . . . Processor 6 | . 1 1 . 4 . Hackware 1 | . . . . 1 . Protection 3 | . . . 1 2 . Artifact . | . . . . . . Weapon 13 | 2 1 2 3 4 1 Energy Gun 2 | 2 . . . . . Energy Cannon 3 | . . . 1 2 . Ballistic Gun 1 | . . . 1 . . Ballistic Cannon 2 | . . 2 . . . Launcher 4 | . 1 . 1 1 1 Special Weapon . | . . . . . . Impact Weapon 1 | . . . . 1 . Slashing Weapon . | . . . . . . Piercing Weapon . | . . . . . . Special Melee Weapon . | . . . . . . Unidentified Prototypes 1 | . . . 1 . . Parts Lost 25 | . 2 2 6 15 . Power 6 | . 1 1 2 2 . Propulsion 8 | . . . 1 7 . Utility 4 | . 1 . 1 2 . Weapon 7 | . . 1 2 4 . Highest Loss Streak 7 | . 1 2 6 7 . To Critical Strikes . | . . . . . . Average Backups 9 | 2 9 12 7 8 12 Power 1 | . . 1 . 1 2 Propulsion 2 | 1 4 3 2 . 1 Utility 3 | . 1 3 4 4 6 Weapon 2 | . 2 2 1 1 2 Tool/Special . | . . . . . . Unused Backups 19 | . 4 5 3 . 7 Power 1 | . . . . . 1 Propulsion 9 | . 3 5 1 . . Utility 6 | . . . 2 . 4 Weapon 3 | . 1 . . . 2 Tool/Special . | . . . . . . Average Slot Usage (%) 88 | . 99 99 90 80 82 Engine 7 | . 14 13 12 2 . Core 2 | . . . . 4 7 Treads 17 | . 27 28 27 5 4 Leg 5 | . . . . 10 15 Hover 1 | . . . . 3 2 Device 10 | . 9 13 5 11 15 Storage 8 | . 14 14 8 7 7 Processor 9 | . 3 . 7 13 15 Protection 1 | . . . . 2 . Energy Gun 8 | . 27 25 . 5 . Energy Cannon 1 | . . . . 1 3 Ballistic Gun 3 | . . . 4 4 3 Ballistic Cannon 7 | . . 2 21 . . Impact Weapon 1 | . . . . 1 5 Peak Build Rating 63 | 6 9 10 26 61 63 Average Rating 30 | 5 7 9 16 49 59 On Entrance 18 | . 6 9 10 26 59 Naked Turns . | . . . . . . Heaviest Build 43 | 12 29 32 34 43 38 Greatest Support 68 | 40 40 40 40 68 38 Greatest Overweight (x) 12 | 2 . . . 12 . Average Overweight (x) . | . . . . . . Largest Inventory Capacity 15 | 8 15 15 15 15 15 Average Capacity 13 | 7 11 15 10 15 15 Most Carried 15 | 5 15 15 14 13 15 Average Carried 9 | 3 9 13 9 8 13 Final Capacity 15 | 8 15 15 5 15 15 Final Carried 15 | 5 15 12 5 13 12 Scrap Engine Consumption 82 | . . . 15 59 8 Constructs Created 10 | . . . . 10 . Constructs Modified 15 | . . . . 10 5 Class Distribution -------------------- 80% | Mutant 11% | Construct 5% | Assassin Dominant Class ---------------- Mutant | -10/Materials Mutant | -10/Subcaves Mutant | -9/Recycling Mutant | -7/Factory Construct | -7/Lower Caves Resources | -11 -10 -10 -9 -7 -7 ----------- Run | Yrd Mat Sub Rec Fac Low Matter Collected 1341 | 155 230 86 202 473 195 Remotely . | . . . . . . Salvage Created 2322 | . 595 128 219 1380 . Parts 114 | . 27 12 6 69 . Haulers Intercepted 2 | . 1 . . 1 . Recyclers Shooed . | . . . . . . Parts Field Recycled . | . . . . . . Retrieved Matter . | . . . . . . Parts Self-Destructed 6 | . . 5 . . 1 Prevented . | . . . . . . Kills | -11 -10 -10 -9 -7 -7 ------- Run | Yrd Mat Sub Rec Fac Low Combat Hostiles Destroyed 49 | . 11 4 5 29 . Guns 30 | . 10 2 . 18 . Cannons 10 | . . . 5 5 . AOE 8 | . 1 2 . 5 . Classes Destroyed 15 | . 4 2 3 6 . Hauler 2 | . 1 . . 1 . Recycler 3 | . 1 . . 2 . Operator 1 | . 1 . . . . Turret 1 | . . 1 . . . Swarmer 6 | . . . . 6 . Grunt 15 | . 11 . . 4 . Brawler 2 | . . . . 2 . Duelist 2 | . . . . 2 . Sentry 4 | . . . 2 2 . Specialist 4 | . . . . 4 . Hunter 4 | . . . . 4 . Programmer 5 | . . . . 5 . Subdweller 4 | . . 4 . . . Scientist 2 | . . . 2 . . Scrapper 3 | . . . 3 . . Best Kill Streak 6 | . 4 4 5 6 . Combat Bots Only 6 | . 3 4 2 6 . Max Kills in Single Turn 2 | . 1 2 2 2 . Gunslinging . | . . . . . . Exploded 2 | . 1 2 . 2 . Melee . | . . . . . . Uniques/NPCs Destroyed . | . . . . . . Combat | -11 -10 -10 -9 -7 -7 -------- Run | Yrd Mat Sub Rec Fac Low Hostile Shots Fired 461 | . 59 41 40 317 4 Missed 134 | . 15 16 7 95 1 Hits 327 | . 44 25 33 222 3 Melee 21 | . . . . 21 . Projectile 306 | . 44 25 33 201 3 AOE 1 | . . . . 1 . Critical Strikes 17 | . . . 7 10 . Part Disruptions 1 | . . . . 1 . Damage Taken 5024 | . 529 303 693 3467 32 Core 846 | . 33 45 67 691 10 Absorbed by Shields . | . . . . . . Redirected to Shielding 14 | . . . . 14 . Regen/Repaired (Parts) 761 | . 99 . . 598 64 Core Remaining (%) 71 | 100 . . 42 . . Volleys Fired 176 | . 53 11 20 91 1 Largest 2 | . 2 2 2 2 1 Hottest 150 | . 100 100 66 150 55 Shots Fired 328 | . 92 22 34 179 1 Gun 247 | . 90 16 . 141 . Cannon 70 | . . 4 31 34 1 Launcher 11 | . 2 2 3 4 . Special . | . . . . . . Kinetic 64 | . . 4 31 29 . Thermal 251 | . 90 16 . 144 1 Explosive 11 | . 2 2 3 4 . Electromagnetic 2 | . . . . 2 . Robot Hit Streak 20 | . 8 5 9 20 . Robot Miss Streak 3 | . 3 3 1 3 1 Penetration Max . | . . . . . . Secondary Targets 3 | . 1 . . 2 . Max Gunslinging Chain 1 | . 1 . . 1 . Shots Hit Robots 230 | . 56 12 25 137 . Core Hits 140 | . 29 17 11 83 . Critical Kills 1 | . . . . 1 . Critical Parts Destroyed . | . . . . . . Critical Strikes 12 | . 8 . 3 1 . Burn 8 | . 8 . . . . Meltdown 1 | . . . . 1 . Blast 3 | . . . 3 . . Melee Attacks 19 | . . . . 11 8 Impact 19 | . . . . 11 8 Slashing . | . . . . . . Piercing . | . . . . . . Sneak Attacks . | . . . . . . Combat Hostiles . | . . . . . . Follow-up Attacks . | . . . . . . Damage Inflicted 5713 | . 836 686 762 3429 . Guns 2939 | . 735 103 . 2101 . Cannons 1123 | . . 66 489 568 . Explosions 1650 | . 101 517 273 759 . Melee . | . . . . . . Ramming 1 | . . . . 1 . Kinetic 1041 | . . 66 489 486 . Thermal 3021 | . 735 103 . 2183 . Explosive 1650 | . 101 517 273 759 . Electromagnetic . | . . . . . . Impact . | . . . . . . Slashing . | . . . . . . Piercing . | . . . . . . Highest Corruption 10 | . . . . 10 10 Average Corruption 7 | . . . . 6 10 Corruption Purged . | . . . . . . Corruption Blocked . | . . . . . . Effects 57 | . . . . 37 20 Message Errors 10 | . . . . 8 2 Matter Fused 14 | . . . . 7 7 Heat Flow Errors 10 | . . . . 6 4 Energy Discharges 6 | . . . . 4 2 Parts Rejected 1 | . . . . 1 . Data Loss (minor) 7 | . . . . 6 1 Data Loss (major) 6 | . . . . 4 2 Alerts 2 | . . . . . 2 Weapon Failures 1 | . . . . 1 . Overload Shots . | . . . . . . Overflow Damage 34 | . . . 20 14 . Projectiles 20 | . . . 20 . . Explosions 14 | . . . . 14 . Melee . | . . . . . . Knockbacks 11 | . . 1 9 1 . Impact . | . . . . . . Kinetic 10 | . . 1 8 1 . Secondary 1 | . . . 1 . . Self-Inflicted Damage 96 | . 23 . 16 57 . Shots 5 | . 1 . 1 3 . Rammed 1 | . . . . 1 . Targets Rammed 1 | . . . . 1 . Kicked . | . . . . . . Crushed . | . . . . . . Highest Temperature 407 | . 295 6 387 407 247 Average Temperature 112 | . 84 4 204 106 105 Received Heat Transfer 1425 | . 279 108 522 516 . Effects 11 | . 5 . 2 4 . Shutdowns 1 | . . . . 1 . Energy Bleed 2 | . . . 1 1 . Interference 8 | . 5 . 1 2 . Siege Activations . | . . . . . . Martial Activations . | . . . . . . Shielding Activations . | . . . . . . Robots Disrupted . | . . . . . . Combat Hostiles . | . . . . . . Robots Corrupted . | . . . . . . Combat Hostiles . | . . . . . . Parts Fried . | . . . . . . Impact Corruptions . | . . . . . . Robots Melted 1 | . . . . 1 . Combat Hostiles 1 | . . . . 1 . Parts Melted 12 | . 5 . 3 4 . Heat Transferred 5123 | . 2775 296 . 2052 . Parts Sabotaged . | . . . . . . Parts Stolen . | . . . . . . Parts Stripped . | . . . . . . Power Chain Reactions . | . . . . . . Alert | -11 -10 -10 -9 -7 -7 ------- Run | Yrd Mat Sub Rec Fac Low Maximum Alert Level 1 | . . . . 1 . Low Security (%) 74 | 100 100 . 100 40 . Level 1 25 | . . . . 59 . Level 2 . | . . . . . . Level 3 . | . . . . . . Level 4 . | . . . . . . Level 5 . | . . . . . . High Security . | . . . . . . Max Security . | . . . . . . Peak Influence 302 | . 129 . 33 302 . Initial 50 | . . . 14 50 . Average 82 | . 56 . 1 169 . Influence Increases 1410 | . 346 65 93 906 . Destroy 0b10 Robot/C 860 | . 220 20 40 580 . Destroy 0b10 Robot/NC 30 | . 15 . . 15 . Destroy Leader 164 | . 42 . . 122 . Successful Hack 57 | . 24 . 22 11 . Select Force Hacks 30 | . . . 30 . . Disable Machine 60 | . 15 . . 45 . Destroy Structure 54 | . 15 . 1 38 . Advance Influence 50 | . . . . 50 . Lose Combat Pursuer 105 | . 15 45 . 45 . Influence Decreases 1410 | . 322 58 124 664 242 Entered New Map 119 | . . 12 17 . 90 Time Decay 1111 | . 302 36 107 514 152 Lost Part 180 | . 20 10 . 150 . Squads Dispatched 17 | . 3 . . 14 . Investigation 1 | . 1 . . . . Extermination 4 | . . . . 4 . Reinforcement 8 | . 2 . . 6 . Assault . | . . . . . . Garrison 4 | . . . . 4 . Intercept . | . . . . . . Searches Triggered . | . . . . . . Construction Impeded . | . . . . . . Haulers Reinforced . | . . . . . . Active Scanning Responses . | . . . . . . Cargo Convoy Interrupts 1 | . . . . 1 . Stealth | -11 -10 -10 -9 -7 -7 --------- Run | Yrd Mat Sub Rec Fac Low Distress Signals 4 | . 2 . . 2 . Communications Jammed . | . . . . . . Distress Signals . | . . . . . . Times Spotted 93 | . 20 12 5 55 1 Peak Tracking Total 11 | . 4 6 4 11 1 Tactical Retreats 4 | . 1 1 . 2 . Traps | -11 -10 -10 -9 -7 -7 ------- Run | Yrd Mat Sub Rec Fac Low Traps Triggered 3 | . 1 . . 2 . Indirectly . | . . . . . . Trap Hack Attempts . | . . . . . . Triggered . | . . . . . . Disarmed . | . . . . . . Reprogrammed . | . . . . . . Reused . | . . . . . . Traps Extracted . | . . . . . . Installed . | . . . . . . Triggered . | . . . . . . Machines | -11 -10 -10 -9 -7 -7 ---------- Run | Yrd Mat Sub Rec Fac Low Machines Disabled 5 | . 1 . 1 3 . Max in Single Turn 1 | . 1 . 1 1 . Machines Repaired . | . . . . . . Machines Dismantled . | . . . . . . Machines Sabotaged . | . . . . . . Overloaded Fab Kills . | . . . . . . Hacking | -11 -10 -10 -9 -7 -7 --------- Run | Yrd Mat Sub Rec Fac Low Machines Accessed 22 | . 4 . 12 6 . Terminals 12 | . 3 . 6 3 . Fabricators 1 | . . . . 1 . Repair Stations 2 | . 1 . . 1 . Recycling Units 5 | . . . 4 1 . Scanalyzers . | . . . . . . Garrison Access . | . . . . . . Total Hacks 70 | . 7 . 51 12 . Successful 48 | . 2 . 39 7 . Failed 22 | . 5 . 12 5 . Catastrophic 2 | . . . 1 1 . Database Lockouts . | . . . . . . Manual 15 | . 2 . 9 3 1 Terminals 25 | . 4 . 17 4 . Fabricators 1 | . . . . 1 . Repair Stations 6 | . 3 . . 3 . Recycling Units 12 | . . . 8 4 . Scanalyzers . | . . . . . . Garrison Access . | . . . . . . Terminal Hacks 34 | . . . 33 1 . Record 24 | . . . 24 . . Prototype ID Bank 2 | . . . 2 . . Branch Access Points 2 | . . . 1 1 . Emergency Access Points 1 | . . . 1 . . Terminal Index 1 | . . . 1 . . Alert Level 1 | . . . 1 . . Dispatch Records 1 | . . . 1 . . Release Object 2 | . . . 2 . . Fabricator Hacks 1 | . . . . 1 . Network Status 1 | . . . . 1 . Repair Station Hacks 4 | . 2 . . 2 . Scan Component 2 | . 1 . . 1 . Repair 2 | . 1 . . 1 . Recycling Unit Hacks 8 | . . . 5 3 . Process 1 | . . . . 1 . Report Inventory 5 | . . . 4 1 . Retrieve Matter 1 | . . . . 1 . Retrieve Components 1 | . . . 1 . . Scanalyzer . | . . . . . . Garrison Access Hacks . | . . . . . . Unauthorized Hacks 1 | . . . 1 . . Terminals . | . . . . . . Fabricators . | . . . . . . Repair Stations . | . . . . . . Recycling Units 1 | . . . 1 . . Tunnel 1 | . . . 1 . . Scanalyzers . | . . . . . . Garrison Access . | . . . . . . Data Cores Recovered . | . . . . . . Used . | . . . . . . Hacking Detections 15 | . 3 . 9 3 . Full Trace Events . | . . . . . . Feedback Events . | . . . . . . Feedback Blocked . | . . . . . . Robot Schematics Acquired . | . . . . . . Robots Built . | . . . . . . Authchips . | . . . . . . Time . | . . . . . . Total Robot Build Rating . | . . . . . . Part Schematics Acquired . | . . . . . . Parts Built . | . . . . . . Authchips . | . . . . . . Time . | . . . . . . Total Part Build Rating . | . . . . . . Parts Repaired 2 | . 1 . . 1 . Time 51 | . 13 . . 38 . Parts Recycled . | . . . . . . Recycled Matter 2 | . . . . 2 . Retrieved Matter 2 | . . . . 2 . Retrieved Components 7 | . . . 7 . . Parts Scanalyzed . | . . . . . . Part Schematics Acquired . | . . . . . . Parts Damaged . | . . . . . . Bothacking | -11 -10 -10 -9 -7 -7 ------------ Run | Yrd Mat Sub Rec Fac Low Used RIF Installer . | . . . . . . Robots Hacked . | . . . . . . Non-combat . | . . . . . . Combat . | . . . . . . Robot Hacks Applied . | . . . . . . Relay Couplers Released . | . . . . . . Fabnet Peak Effective % . | . . . . . . Robots Rewired . | . . . . . . Allies Hacked . | . . . . . . Hacks Repelled . | . . . . . . Allies | -11 -10 -10 -9 -7 -7 -------- Run | Yrd Mat Sub Rec Fac Low Total Allies . | . . . . . . Largest Group . | . . . . . . Highest-Rated Group . | . . . . . . Highest-Rated Ally . | . . . . . . Total Orders . | . . . . . . Ally Attacks . | . . . . . . Total Damage . | . . . . . . Kills . | . . . . . . Allies Corrupted . | . . . . . . Allies Melted . | . . . . . . Intel | -11 -10 -10 -9 -7 -7 ------- Run | Yrd Mat Sub Rec Fac Low Active Infowar (turns) 2003 | . . 468 . 839 696 Optics 1190 | . . . . 494 696 Sensors 1509 | . . 468 . 345 696 Robot Analysis Total . | . . . . . . Derelict Logs Recovered 1 | . . . . . 1 Drone Launches . | . . . . . . Drone Recoveries . | . . . . . . Exploration | -11 -10 -10 -9 -7 -7 ------------- Run | Yrd Mat Sub Rec Fac Low Turns Passed 5979 | 72 820 541 1825 2025 696 Spaces Moved 3179 | 41 379 300 1081 901 477 Core 11 | 8 . . . 3 . Treads 2199 | 33 379 300 1081 291 115 Legs 899 | . . . . 537 362 Wheels 31 | . . . . 31 . Hover 39 | . . . . 39 . Flight . | . . . . . . Fastest Speed 35 | 50 160 160 160 99 35 Average Speed 147 | 144 160 160 160 147 103 Slowest Speed 650 | 160 160 160 160 650 125 Overloaded Moves . | . . . . . . Propulsion Burnouts . | . . . . . . Robots Hopped . | . . . . . . Potential Cave-ins 3 | . . . . 3 . Cave-ins Triggered . | . . . . . . Exploration Rate (%) 37 | 4 39 25 99 18 39 Regions Visited 5 Branch Regions 3 Pre-discovered Areas 1 | . . . 1 . . Known Exits Taken 3 | . . 1 1 1 . Unknown Exits Taken 2 | 1 1 . . . . Scrap Searched 1 | . . . . . 1 Spaces Dug 15 | . . . . 8 7 Terrain Destroyed 75 | . 15 8 . 45 7 Melee 15 | . . . . 8 7 Projectile 2 | . . . . 2 . AOE 58 | . 15 8 . 35 . Terrain Rammed . | . . . . . . Walls Destroyed . | . . . . . . Machines Disabled . | . . . . . . Actions | -11 -10 -10 -9 -7 -7 --------- Run | Yrd Mat Sub Rec Fac Low Total 4111 | 51 500 340 1145 1406 669 Wait 550 | . 39 11 12 320 168 Move 3174 | 40 378 299 1080 900 477 Hop . | . . . . . . Pick Up 54 | 5 14 3 14 15 3 Fast Attach 25 | 6 2 . 3 14 . Attach 26 | . 2 3 4 15 2 Detach 18 | . . 1 . 14 3 Swap 30 | . 7 6 2 13 2 Drop 34 | . 5 6 10 8 5 Fire 176 | . 53 11 20 91 1 Melee 19 | . . . . 11 8 Ram . | . . . . . . Kick . | . . . . . . Crush 1 | . . . . 1 . Escape Stasis 4 | . . . . 4 . Rewire . | . . . . . . Trap . | . . . . . . Miscellaneous . | . . . . . . Route ------- -11/Scrapyard -10/Materials (discovered 2 exits: [*Min] / [*Sub]) -10/Subcaves (discovered 2 exits: *Mat / *Rec) -9/Recycling -7/Factory (discovered 2 exits: *Low x2) -7/Lower Caves (discovered 1 exit: Low) History --------- Turn | Location | Event 7 | -11/Scrapyard | Discovered new exit (range 16) 73 | -11/Scrapyard | Entered Materials 304 | -10/Materials | Build established: Mutant 340 | -10/Materials | Discovered new exit (range 15) 424 | -10/Materials | Repaired Lgt. Treads 520 | -10/Materials | Discovered new exit (range 8) 893 | -10/Materials | Entered Subcaves 1016 | -10/Subcaves | Ambushed by swarm of Subdwellers 1372 | -10/Subcaves | Discovered new exit (range 11) 1401 | -10/Subcaves | Discovered new exit (range 13) 1414 | -10/Subcaves | Identified exit to Materials 1426 | -10/Subcaves | Identified exit to Recycling 1434 | -10/Subcaves | Entered Recycling 1874 | -9/Recycling | Discovered new exit (range 16) 1898 | -9/Recycling | Identified exit to Factory 2339 | -9/Recycling | Scanned before Scraplab entrance 2367 | -9/Recycling | Entered Scraplab 2387 | -9/Recycling | Discovered new exit (range 3) 2389 | -9/Recycling | Identified exit to Scraptown 2411 | -9/Recycling | Angered Scraplab inhabitants 2415 | -9/Recycling | Found Prototype Device 2447 | -9/Recycling | Core integrity fell below 50% 2471 | -9/Recycling | Identified Scrap Engine 2494 | -9/Recycling | Lost 6 parts (2p1n1u2w) 3259 | -9/Recycling | Entered Factory 3259 | -7/Factory | Evolved 6 slots: Propulsion x2, Utility x4 3726 | -7/Factory | Garrison activated, responded to threat 4040 | -7/Factory | Cargo convoy interrupted 4074 | -7/Factory | Core integrity fell below 50% 4128 | -7/Factory | Lost 7 parts (1p2n2u2w) 4275 | -7/Factory | Garrison activated, responded to threat 4360 | -7/Factory | Core integrity fell below 20% 4533 | -7/Factory | Lost 3 parts (2n1w) 4904 | -7/Factory | System corruption reached 10% 5020 | -7/Factory | Repaired Imp. Sensor Array 5076 | -7/Factory | Identified exit to Lower Caves 5284 | -7/Factory | Entered Lower Caves 5302 | -7/Lower Caves | Acquired the password to a Derelict Tinkerer's latest research 5312 | -7/Lower Caves | Found Prototype Special Weapon 5389 | -7/Lower Caves | Identified exit to Lower Caves 5548 | -7/Lower Caves | Build established: Assassin 5587 | -7/Lower Caves | Spotted B-75 Beast 5865 | -7/Lower Caves | Build established: Construct 5980 | -7/Lower Caves | Destroyed by X-72 Disruptor with Arc Projector Last Messages --------------- 05670_ Acquired 1 matter. 05671_ Acquired 22 matter. 05676_ System corrupted: Energy discharge (-51). 05679_ Arm. Scrap Engine consumes Wheel. 05681_ Acquired 2 matter. 05705_ System corrupted: Substantial component data lost. 05732_ Scrap Engine modifies Treaded Gravmag-Carbon Exoskeleton: Time/Move +35. 05749_ System corrupted: Heat flow error (+226). 05773_ System corrupted: Energy discharge (-49). 05806_ Dropped Proton Missile Launcher. 05808_ Acquired Proton Missile Launcher. 05811_ System corrupted: Component data lost. 05828_ System corrupted: Matter fused (-9). 05845_ System corrupted: Substantial component data lost. 05894_ QSAHBI:FJ|ILG0: Map ----- +----------------------------------------------------+ | ?????????????????????????????????????????????????? | | ?????????????????????????????????????????????????? | | ?????????????????????????????????????????????????? | | ?????????????????????????????????????????????????? | | ?????????????????????????????????????????????????? | | ?????????????????????????????????????????????????? | | ?????????????????????????????????????????????????? | | ?????????????????????????????????????????????????? | | ?????????????????????????????????????????????????? | | ?????????????????????????????????????????????????? | | ?????????????????????????????????????????????????? | | ?????????????????????????????????????????????????? | | ?????????????????????????????????????????????????? | | ?????????????????????????????????????????????????? | | ????????????????????h????????????????????????????? | | ?????????????????????????????????????????????????? | | ?????????????????????????????????????????????????? | | ?????????????????????????????????????????????????? | | ?????????????????????????????????????????????????? | | ?????????????????????????????????????????????????? | | ?????????????????????????????????????????????????? | | ????????????????????????#######??????????????????? | | ????????????????????????# " #??????????????????? | | ????????????????????????### ##?##########???????? | | ????????????????????????## #??# #???????? | | ?????????????????????####@ ##?# #???????? | | ???????????????? ??# # #?# "" " "#???????? | | ????????????????# ???#; #?# """ "#????###? | | ????????????????# ???## #### "" "" #??### ## | | ???????????????## ????# #?# " #?##" %% | | ????????????##?# ???# #?# """" ###" % % | | ???????????? ?# ???# ###??# """"" | | ???????????? ## ???# #???## "" #### ""# | | ???????????? #??## ##??# #??# ### | | ???????????? #??# #### # ######## ## | | ??????????? ??# ## #????# % % | | # ?????????? Y ??## # ##???# % % | | #? ????????? ?? ???# ###### ##### ###### | | # ???????? ??? ???# ##?## #????? | | ?? ??????? ???? ##?#x #?# #######????? | | ??? ?????## ????? ## #?## #??????????? | | ????? ???## ?????? #?## ##??####????? | | ?????? ### #??????# ## #### ##?## ##???? | | ???????? #??????# ######?# #?# ##### | | ?????????# #?????## ##"##?## ##?# | | ????????## #???### ### ### #?# | | ???????# #???# ### ##?# ### | | ??????# ###?# ### ### % | | #???## ##### #### | | #### ##### ## #?## % | +----------------------------------------------------+ Best States ------------- Heat Dissipation 48 Energy Generation 14 Energy Capacity 265 Matter Stores 300 Matter Capacity 300 Sight Range 20 Robot Scan Range 15 Terrain Scan Density 10 Armor Coverage 225 Utility Shielding 33 Weapon Cycling 15 Evasion (%) 55 Targeting Accuracy 8 Recoil Reduction 3 Offensive Hacking 10 Item Schematics ----------------- None Robot Schematics ------------------ None Fabricated ------------ Nothing Repaired ---------- Lgt. Treads | 29% | -10/Materials Imp. Sensor Array | 27% | -7/Factory Alien Tech Used ----------------- None Achievements -------------- None Challenges ------------ None Game ------ Seed RingBattleBlaster Manual? 0 Play Time 01:01:59 Cumulative 61.5 hours Start 2025.07.21 @ 15:36:58 End 2025.07.21 @ 16:44:31 Sessions 1 Manual Loads 0 Difficulty Rogue Special Mode None Game No. 45 Rogue 45 Adventurer 0 Explorer 0 Win Type - Total 0 Types 0/0/0/0/0/0/0/0/0/0 Lore% 42 Gallery% 44 Achievement% 38 Wizard Run 0 Options --------- Layout 1 ASCII 0 Keyboard 0 Movement Numpad Keybinds 0 Fullscreen 1 Font 24/Smallcaps Map View 50x35 Zoom Use 0% Tactical HUD 1 Map Filters NONE Filters NONE Steam 1 RUN: 2fdc3e27-57c8-43f8-915c-ff6fa0221b04